[Event "31st Kavala Open-A 2022"]
[Site "Kavala"]
[Date "2022.07.27"]
[Round "2.11"]
[White "Trimitzios, Petros"]
[Black "Rahmanidis, Petros"]
[Result "0-1"]
[ECO "E04"]
[WhiteElo "2369"]
[BlackElo "2191"]
[Annotator "TA"]
[PlyCount "94"]
[EventDate "2022.07.27"]
[EventType "swiss"]
[EventCountry "GRE"]
[SourceTitle "playchess.com"]
[Source "ChessBase"]
[SourceQuality "1"]
[TimeControl "40/5400+30:1800+30"]

{[%evp 20,94,20,24,20,20,25,15,52,41,41,28,25,20,98,0,64,66,71,78,75,60,150,143,145,56,53,22,41,16,22,-4,13,11,12,-6,0,0,0,0,0,0,0,0,0,0,0,0,0,0,0,-48,-44,-76,-52,-561,-561,-573,-578,-578,-578,-577,-536,-564,-563,-544,-537,-804,-788,-804,-805,-1076,-843,-1598,-976,-1682,-1658]} 1. d4 {[%emt 0:00:02]} d5 {[%emt 0:01:46]} 2. Nf3 {[%emt 0:01:56]} e6 {[%emt 0:00:28]} 3. g3 {[%emt 0:02:50]} c5 {[%emt 0:01:41]} 4. c3 {[%emt 0:02:24]} Nf6 {[%emt 0:07:04]} 5. Bg2 {[%emt 0:01:01]} Nc6 {[%emt 0:15:05]} 6. O-O {[%emt 0:03:43]} Be7 {[%emt 0:03:22]} 7. c4 {[%emt 0:17:19]} dxc4 {[%emt 0:05:56]} 8. dxc5 {[%emt 0:00:46]} Qxd1 {[%emt 0:11:09]} 9. Rxd1 {[%emt 0:00:02]} Bxc5 {[%emt 0:00:06]} 10. Nbd2 {[%emt 0:00:25]} c3 {[%emt 0:02:45]} 11. bxc3 {[%emt 0:00:23]} Bd7 {[%emt 0:01:31] 11...Be7 is a critical line. E04: Open Catalan: 5 Nf3.} 12. Nb3 {[%emt 0:05:41]} Be7 {[%emt 0:06:46]} 13. Nfd4 {[%emt 0:05:50]} a6 {[%emt 0:04:20] [#] The position is equal.} 14. Be3 $146 {[%emt 0:08:02]} ({Predecessor:} 14. Nxc6 Bxc6 15. Bxc6+ bxc6 16. c4 O-O 17. Bf4 a5 18. Bd6 Bxd6 19. Rxd6 Rfc8 20. Nc5 Rab8 21. Rad1 {½-½ (48) Stella,A (2444)-Easwaralingam,A (2069) Terme Catez 2022}) 14... Rc8 {[%emt 0:05:32]} 15. Rac1 {[%emt 0:08:15]} Ba3 {[%emt 0:11:45]} 16. Rc2 {[%emt 0:07:45]} Nxd4 {[%emt 0:10:20]} (16... b5 $11 {remains equal.}) 17. Rxd4 {[%emt 0:04:56]} (17. Bxd4 $16 Bb5 18. Bxb7) 17... Bc6 {[%emt 0:00:38]} (17... e5 $11 18. Rd1 Bf5) 18. Bxc6+ $14 {[%emt 0:04:02]} Rxc6 {[%emt 0:00:12]} 19. Na5 $1 {[%emt 0:00:25][%csl LRb7,LRc6]} Rc7 {[%emt 0:03:28]} 20. Bf4 {[%emt 0:04:23]} Re7 {[%emt 0:00:09] [#]} ({Black should play} 20... Rd7 $1 $14) 21. Ra4 $1 $16 {[%emt 0:08:23]} Bc5 {[%emt 0:03:25] [#] aiming for ...b5.} 22. Nb3 {[%emt 0:01:43]} (22. Rc4 $1 $16 {[%cal Rc4c5]} b6 23. Nb3) 22... Ba7 $14 {[%emt 0:01:59]} 23. c4 {[%emt 0:03:42]} e5 {[%emt 0:01:19]} 24. Bc1 {[%emt 0:00:24]} Rc7 $1 {[%emt 0:00:51]} 25. Ra5 {[%emt 0:01:02]} Nd7 {[%emt 0:00:46]} 26. Ba3 {[%emt 0:00:17]} f6 $1 {[%emt 0:00:24]} 27. Nd2 {[%emt 0:06:25][%cal Bb3d2,Bd2e4,Be4c3,Bc3d5][%mdl 32]} Bc5 {[%emt 0:00:26]} 28. Ne4 {[%emt 0:00:47]} Bxa3 {[%emt 0:00:14]} 29. Rxa3 {[%emt 0:00:02]} Ke7 {[%emt 0:00:26]} 30. Nc3 {[%emt 0:00:26] Hoping for Nd5+.} Rc6 {[%emt 0:00:53]} (30... Nb6 $2 31. Rb3 Nd7 32. Nd5+ Kd6 33. Nxc7 Kxc7 34. Rb1 $18) 31. Nd5+ {[%emt 0:00:07]} Kf7 {[%emt 0:00:27]} 32. Rb2 {[%emt 0:01:09]} Nc5 {[%emt 0:00:35]} 33. Ra5 {[%emt 0:00:40]} Rhc8 {[%emt 0:00:33]} 34. f3 {[%emt 0:01:19]} f5 {[%emt 0:00:31]} 35. Nb4 {[%emt 0:00:37]} (35. Kg2 $11) 35... Rb6 $15 {[%emt 0:00:36]} 36. a3 {[%emt 0:00:17]} Ke6 {[%emt 0:00:28]} 37. Nd3 $2 {[%emt 0:00:57][%mdl 8192]} (37. h4 $15) 37... Rxb2 $19 {[%emt 0:00:14] Black is clearly winning.} 38. Nxb2 {[%emt 0:00:02]} b6 {[%emt 0:00:22]} 39. Rxc5 {[%emt 0:00:18]} Rxc5 {[%emt 0:00:19][%mdl 4096] Endgame KR-KN} 40. a4 {[%emt 0:00:00]} Rc8 {[%emt 0:00:00]} 41. Kf2 {[%emt 0:00:39]} Kd6 {[%emt 0:07:37]} 42. Ke3 {[%emt 0:02:29]} Kc5 {[%emt 0:01:39]} 43. g4 {[%emt 0:02:32]} fxg4 {[%emt 0:02:25]} 44. fxg4 {[%emt 0:00:04]} Kb4 {[%emt 0:00:18] Threatens to win with ...Kb3.} 45. Nd3+ {[%emt 0:02:04]} Kxa4 {[%emt 0:00:25]} 46. Nxe5 {[%emt 0:00:09]} Kb3 {[%emt 0:01:05]} 47. Kf4 {[%emt 0:02:36]} a5 {[%emt 0:00:39] Quite a comeback for Black.  Weighted Error Value: White=0.69/Black=0.12 (very precise)} 0-1

[Event "31st Kavala Open-A 2022"]
[Site "Kavala"]
[Date "2022.07.27"]
[Round "2.12"]
[White "Triantos, Konstantinos"]
[Black "Celik, Hasan Huseyin"]
[Result "0-1"]
[ECO "C07"]
[WhiteElo "2210"]
[BlackElo "2363"]
[Annotator "TA"]
[PlyCount "168"]
[EventDate "2022.07.27"]
[EventType "swiss"]
[EventCountry "GRE"]
[SourceTitle "playchess.com"]
[Source "ChessBase"]
[SourceQuality "1"]
[TimeControl "40/5400+30:1800+30"]

{[%evp 17,168,3,1,-17,-42,-73,-57,-83,-87,-81,-72,-76,-67,-61,-60,-85,-91,-89,-78,-88,-86,-91,-89,-164,-91,-99,-93,-96,-72,-79,-61,-93,-88,-99,-73,-98,0,-116,-116,-198,-177,-185,-108,-271,-95,-153,-147,-138,-122,-210,-201,-194,-207,-196,-200,-224,-213,-228,-227,-227,-232,-361,-350,-556,-540,-716,-452,-451,-439,-443,-437,-433,-430,-444,-440,-436,-395,-510,-500,-490,-472,-448,-439,-453,-425,-435,-429,-441,-433,-406,-304,-375,-360,-495,-479,-462,-357,-772,-737,-674,-671,-1272,-1020,-29973,-29974,-5010,-1612,-29982,-29983,-29984,-29985,-29988,-29989,-29989,-29984,-29986,-29987,-29990,-29991,-29994,-29995,-29996,-29994,-29994,-29979,-29979,-29980,-29980,-29980,-29980,-29981,-29981,-29982,-29984,-29985,-29985,-29984,-29983,-29984,-29984,-29985,-29986,-29987,-29987,-29988,-29988,-29989,-29990,-29991,-29991,-29991,-29992,-29992]} 1. e4 {[%emt 0:00:15]} e6 {[%emt 0:00:06]} 2. d4 {[%emt 0:00:04]} d5 {[%emt 0:00:06]} 3. Nd2 {[%emt 0:00:04]} c5 {[%emt 0:00:07]} 4. Ngf3 {[%emt 0:00:09]} cxd4 {[%emt 0:00:05]} 5. Nxd4 {[%emt 0:00:04]} Nc6 {[%emt 0:00:07]} 6. Bb5 {[%emt 0:01:09]} Bd7 {[%emt 0:00:10]} 7. Nxc6 {[%emt 0:00:06]} bxc6 {[%emt 0:00:03]} 8. Bd3 {[%emt 0:00:05]} Bd6 {[%emt 0:00:03]} 9. O-O {[%emt 0:02:11]} Qc7 {[%emt 0:00:03]} 10. Nf3 {[%emt 0:02:27] C07: French Tarrasch: 3...c5, 4 Ngf3 and 4 exd5 Qxd5.} e5 {[%emt 0:00:08] [#]} 11. exd5 $146 {[%emt 0:15:14]} ({Predecessor:} 11. Nd2 Nf6 12. b3 Bb4 13. Bb2 O-O 14. c3 Bd6 15. c4 d4 16. Nf3 a5 17. Bc1 Bg4 {½-½ (43) Pruijssers,R (2506)-Godart,F (2431) Belgium 2018}) 11... cxd5 {[%emt 0:00:28]} 12. Qe2 {[%emt 0:01:11][%cal Of3e5] And now Nxe5! would win. Black is slightly better.} Ne7 {[%emt 0:13:13] Hoping for ...e4.} 13. Bb5 {[%emt 0:02:45]} Bxb5 {[%emt 0:00:23]} 14. Qxb5+ {[%emt 0:00:07]} Qd7 {[%emt 0:00:15]} 15. Qxd7+ {[%emt 0:05:32]} Kxd7 {[%emt 0:00:17]} 16. Re1 {[%emt 0:01:29]} f6 {[%emt 0:00:15]} 17. c3 {[%emt 0:01:32]} Rab8 {[%emt 0:01:46]} 18. Re2 {[%emt 0:13:04]} Rhc8 {[%emt 0:01:00]} 19. Ne1 {[%emt 0:01:31]} a5 {[%emt 0:02:20]} 20. Nd3 {[%emt 0:02:56]} (20. Be3 $17) 20... g5 {[%emt 0:01:15]} (20... a4 $1 $19 {[%cal Oa4a3]} 21. a3 Rb3) 21. f3 {[%emt 0:00:52]} h6 {[%emt 0:09:59]} 22. Bd2 {[%emt 0:03:39]} Ng6 {[%emt 0:00:48]} 23. Rd1 {[%emt 0:02:16]} Ke6 {[%emt 0:06:54]} 24. Be3 {[%emt 0:00:30]} Rc4 {[%emt 0:12:37]} 25. g3 {[%emt 0:15:35]} Rb5 {[%emt 0:07:22]} 26. Rf1 {[%emt 0:01:52]} f5 {[%emt 0:00:55]} (26... Kf7 $17) 27. f4 {[%emt 0:10:21]} (27. Bd4 $1 $11 {remains equal.}) 27... e4 {[%emt 0:03:25]} 28. Bd4 {[%emt 0:04:24]} (28. Ne1 $17) 28... Rc8 {[%emt 0:03:42]} 29. Kh1 {[%emt 0:05:01]} Rg8 {[%emt 0:00:39]} ({Black should play} 29... Kd7 $19 30. Ne1 (30. Ne5+ $2 Bxe5 31. fxe5 Ke6 $19) 30... gxf4 31. gxf4 Nxf4) 30. Ne1 {[%emt 0:03:45]} (30. b3 $17) 30... Rb7 $2 {[%emt 0:03:44]} (30... gxf4 $19 {is more deadly.} 31. gxf4 Nxf4) 31. Be3 {[%emt 0:02:05]} ({White should try} 31. fxg5 hxg5 32. c4 dxc4 33. Nc2) 31... gxf4 $17 {[%emt 0:05:00]} 32. gxf4 {[%emt 0:00:18]} Rgb8 {[%emt 0:01:23] Black is more active.} 33. Rff2 {[%emt 0:02:14] [#]} (33. Bc1 $17) 33... d4 $1 $19 {[%emt 0:03:32]} 34. cxd4 {[%emt 0:00:30] [#]} Ne7 $1 {[%emt 0:00:09]} 35. Rg2 {[%emt 0:01:29]} Kf7 {[%emt 0:00:30]} 36. b3 {[%emt 0:00:56]} Nd5 {[%emt 0:00:18]} 37. Rgf2 {[%emt 0:00:25]} a4 {[%emt 0:01:46]} 38. bxa4 {[%emt 0:00:34]} Rb1 {[%emt 0:00:14] Threatens to win with ...Nc3.} 39. Kg2 {[%emt 0:00:16]} (39. Rf1 $142) 39... Ra8 {[%emt 0:04:52]} 40. Nc2 {[%emt 0:00:00]} (40. Rf1 $142) 40... Rxa4 {[%emt 0:00:00]} 41. a3 {[%emt 0:07:42]} Bxa3 {[%emt 0:01:35]} 42. Rf1 {[%emt 0:00:27]} Rxf1 {[%emt 0:00:13]} 43. Kxf1 {[%emt 0:00:04]} Bd6 {[%emt 0:00:11]} 44. Bd2 {[%emt 0:03:02]} Ke6 {[%emt 0:02:48]} 45. Rf2 {[%emt 0:01:36]} Ra2 {[%emt 0:00:16]} 46. Bc1 {[%emt 0:00:04]} Ra8 {[%emt 0:06:19]} 47. Bd2 {[%emt 0:03:08]} Rb8 {[%emt 0:00:09]} 48. Ke2 {[%emt 0:02:52]} Rb2 {[%emt 0:02:26]} 49. Kd1 {[%emt 0:00:49]} Rb3 {[%emt 0:01:30] ...e3 is the strong threat.} 50. Ke2 {[%emt 0:02:18]} Rd3 {[%emt 0:00:40]} ({Don't go for} 50... Rb2 $2 51. Kd1 $19) 51. Rf1 {[%emt 0:01:03]} Rh3 {[%emt 0:09:21]} 52. Rf2 {[%emt 0:00:13]} Rh4 {[%emt 0:00:10]} 53. Ne3 {[%emt 0:01:46]} Nxf4+ {[%emt 0:00:10]} 54. Kf1 {[%emt 0:00:42]} Rh5 {[%emt 0:00:47]} 55. Nc4 {[%emt 0:03:28]} Nd3 {[%emt 0:03:59][%csl LRf2,LRh2]} 56. Rg2 {[%emt 0:01:00]} Bf4 {[%emt 0:00:11]} 57. Nb2 $2 {[%emt 0:06:07]} (57. Bxf4 Nxf4 58. Ra2) 57... Nxb2 {[%emt 0:00:37]} 58. Bxf4 {[%emt 0:00:18][%mdl 4096] Endgame KRB-KRN} Nd3 {[%emt 0:00:08]} 59. Bd2 {[%emt 0:02:00]} Kd5 {[%emt 0:01:24] aiming for ...f4.} 60. Be3 {[%emt 0:01:44]} f4 {[%emt 0:00:15]} 61. Bg1 {[%emt 0:00:03]} Rg5 {[%emt 0:03:10]} (61... e3 $142 62. h3 f3) 62. Ra2 {[%emt 0:00:22]} e3 {[%emt 0:00:38] Black mates.} 63. h4 {[%emt 0:00:26]} Rg4 {[%emt 0:00:13]} 64. h5 {[%emt 0:00:06]} Ke4 {[%emt 0:01:39]} 65. d5 {[%emt 0:00:31]} Kxd5 {[%emt 0:00:15]} 66. Ra5+ {[%emt 0:01:27]} Ke4 {[%emt 0:00:20]} 67. Ra4+ {[%emt 0:00:11]} Kf3 {[%emt 0:00:08][%csl Gf3][%cal Re3e2]} 68. Bxe3 {[%emt 0:00:42]} fxe3 {[%emt 0:00:24][%csl Gf3][%cal Re3e2] KRN-KR} 69. Ra2 {[%emt 0:00:11]} e2+ {[%emt 0:00:28]} 70. Rxe2 {[%emt 0:00:05]} Rg1+ {[%emt 0:00:02]} 71. Kxg1 {[%emt 0:00:10]} Kxe2 {[%emt 0:00:02] KN-KP} 72. Kg2 {[%emt 0:00:24]} Ke3 {[%emt 0:00:07]} 73. Kg3 {[%emt 0:00:07]} Ke4 {[%emt 0:00:05]} 74. Kg4 {[%emt 0:00:06]} Nf4 {[%emt 0:00:07]} 75. Kg3 {[%emt 0:00:11]} Nxh5+ {[%emt 0:00:06]} 76. Kg4 {[%emt 0:00:09]} Nf6+ {[%emt 0:00:02]} 77. Kg3 {[%emt 0:00:04]} Kf5 {[%emt 0:00:03][%cal Be4f5,Bf5g5,Bg5g4,Bg4g3][%mdl 32]} 78. Kh4 {[%emt 0:00:13]} h5 {[%emt 0:00:03][%cal Bh6h5,Bh5h4,Bh4h3][%mdl 32]} 79. Kg3 {[%emt 0:00:05]} Kg5 {[%emt 0:00:04]} 80. Kh3 {[%emt 0:00:05]} h4 {[%emt 0:00:03]} 81. Kg2 {[%emt 0:00:03]} Kg4 {[%emt 0:00:03]} 82. Kh2 {[%emt 0:00:04]} h3 {[%emt 0:00:04]} 83. Kh1 {[%emt 0:00:05]} Kg3 {[%emt 0:00:03]} 84. Kg1 {[%emt 0:00:03]} Ne4 {[%emt 0:00:04] Weighted Error Value: White=0.67/Black=0.26 (precise)} 0-1

[Event "31st Kavala Open-A 2022"]
[Site "Kavala"]
[Date "2022.07.27"]
[Round "2.13"]
[White "Levin, Guy"]
[Black "Skaperdas, Kostantinos"]
[Result "1-0"]
[ECO "A13"]
[WhiteElo "2363"]
[BlackElo "2177"]
[Annotator "TA"]
[PlyCount "125"]
[EventDate "2022.07.27"]
[EventType "swiss"]
[EventCountry "GRE"]
[SourceTitle "playchess.com"]
[Source "ChessBase"]
[SourceQuality "1"]
[TimeControl "40/5400+30:1800+30"]

{[%evp 9,125,20,18,0,0,-11,26,0,31,63,78,97,81,69,122,121,120,122,135,129,129,118,118,116,132,133,133,134,184,103,204,186,185,165,176,180,185,169,183,176,181,178,171,179,179,178,180,180,180,180,216,216,473,466,509,502,486,483,516,516,473,462,815,779,741,739,706,672,612,448,460,463,447,447,399,378,915,867,1270,1256,1159,799,1443,1068,29966,29967,29967,29967,29969,29970,29970,29971,29972,29973,29973,29974,29974,29973,29973,29974,29974,29975,29976,29977,29977,29978,29978,29979,29980,29980,29979,29980,29982,29983,29984,29984,29984,29983]} 1. c4 {[%emt 0:00:01]} e6 {[%emt 0:00:28]} 2. Nf3 {[%emt 0:00:09]} d5 {[%emt 0:00:24]} 3. g3 {[%emt 0:00:05]} d4 {[%emt 0:00:35]} 4. d3 {[%emt 0:00:38]} Nc6 {[%emt 0:03:00]} 5. Bg2 {[%emt 0:00:05] [#]} Bb4+ $146 {[%emt 0:00:21]} ({Predecessor:} 5... g6 6. O-O Bg7 7. Qa4 a6 8. Nbd2 Nge7 9. b4 O-O 10. Bb2 Qd7 11. Qb3 b6 {½-½ (35) Truyens,A (2387)-Roberts,A (2358) LSS email 2017}) 6. Nbd2 {[%emt 0:00:23] A13: English Opening: 1...e6.} a5 {[%emt 0:00:46]} 7. a3 {[%emt 0:00:28]} Bc5 {[%emt 0:07:45]} 8. Rb1 {[%emt 0:02:09] White has an edge.} f5 {[%emt 0:13:00]} 9. O-O {[%emt 0:02:11][%cal Ob2b4]} Nf6 {[%emt 0:02:22] [#]} 10. b4 $1 {[%emt 0:02:19]} ({Much worse is} 10. Nb3 Be7 $11) 10... axb4 {[%emt 0:01:44]} 11. Nb3 {[%emt 0:02:50]} (11. axb4 {with more complications.} Nxb4 12. Bb2 Bb6 13. Bxd4 Bxd4 14. Nxd4 Na2 15. Nc6) 11... Qd6 {[%emt 0:08:12]} ({Better is} 11... Be7 $14) 12. Nxc5 {[%emt 0:02:06]} Qxc5 {[%emt 0:00:05]} 13. axb4 {[%emt 0:00:05]} Nxb4 {[%emt 0:06:14] [#]} 14. Nxd4 $1 {[%emt 0:00:10][%mdl 512]} Qxd4 {[%emt 0:05:48]} 15. Rxb4 {[%emt 0:00:11]} c6 {[%emt 0:01:05]} 16. Bb2 {[%emt 0:01:44]} Qd6 {[%emt 0:00:50]} 17. Ra4 {[%emt 0:03:30]} Rxa4 {[%emt 0:13:27]} 18. Qxa4 {[%emt 0:00:02]} O-O {[%emt 0:05:04]} (18... Kf7 $16 19. Qa5 Re8) 19. Qa5 {[%emt 0:16:00]} ({White should try} 19. Ba3 $18 c5 20. Rb1) 19... c5 {[%emt 0:02:15]} (19... Re8 $16) 20. Bxf6 {[%emt 0:08:46]} Rxf6 {[%emt 0:08:36]} 21. Qa8 {[%emt 0:00:49]} Qc7 {[%emt 0:03:12]} 22. Rb1 {[%emt 0:02:04][%cal Rb1b7]} Rf8 {[%emt 0:00:23]} 23. Bxb7 {[%emt 0:01:08]} Bd7 {[%emt 0:00:18]} 24. Qa1 {[%emt 0:00:12]} Rb8 {[%emt 0:00:49]} 25. Bf3 {[%emt 0:00:19]} Rxb1+ {[%emt 0:09:03]} 26. Qxb1 $18 {[%emt 0:00:03][%mdl 4096] Endgame KQB-KQB} Kf7 {[%emt 0:00:43]} 27. Qa1 {[%emt 0:05:54]} Qd6 {[%emt 0:04:41]} 28. Bh5+ {[%emt 0:00:05]} g6 {[%emt 0:01:39]} 29. Bf3 {[%emt 0:00:03]} Qd4 {[%emt 0:01:31]} 30. Qa7 {[%emt 0:00:38]} Kf6 $2 {[%emt 0:00:27]} (30... Qd6 {keeps fighting.} 31. h4 h5) 31. e3 {[%emt 0:00:13]} Qxd3 {[%emt 0:00:38]} 32. Qxc5 {[%emt 0:00:09] White wants to mate with Qf8+.} Kf7 {[%emt 0:00:31] Inhibits Qf8+.} 33. Qc7 {[%emt 0:00:34]} Kf6 {[%emt 0:00:29]} 34. Qd8+ {[%emt 0:01:10]} Kf7 {[%emt 0:00:29]} 35. h4 {[%emt 0:00:06]} h5 {[%emt 0:00:31]} (35... h6 $142 36. Kg2 Qd6) 36. Kh2 {[%emt 0:02:01]} Qd2 {[%emt 0:00:15]} 37. Bg2 {[%emt 0:00:10]} Qd6 {[%emt 0:00:43]} 38. c5 {[%emt 0:00:39]} Qe7 {[%emt 0:00:04]} 39. Qh8 {[%emt 0:00:27] And now c6 would win.} Qxc5 {[%emt 0:01:01]} 40. Qh7+ {[%emt 0:00:00]} Ke8 {[%emt 0:00:00]} 41. Qxg6+ {[%emt 0:00:11]} Ke7 {[%emt 0:02:30]} 42. Qxh5 {[%emt 0:02:00] aiming for Qh7+.} Qe5 $2 {[%emt 0:02:19]} (42... Qc2 43. Qg5+ Kf7 44. Qh5+ Kg7) 43. Qg5+ {[%emt 0:00:37]} Qf6 {[%emt 0:01:59]} 44. Qxf6+ {[%emt 0:01:19]} Kxf6 {[%emt 0:00:02] KB-KB} 45. f4 {[%emt 0:00:15]} e5 {[%emt 0:01:05]} 46. Bf3 {[%emt 0:00:55]} exf4 {[%emt 0:10:55]} 47. gxf4 {[%emt 0:00:27] White mates.} Be8 {[%emt 0:00:36]} 48. Kg3 {[%emt 0:00:07]} Kg6 {[%emt 0:07:16]} 49. Kf2 {[%emt 0:00:15]} Kf6 {[%emt 0:00:25]} 50. Ke2 {[%emt 0:00:05]} Bg6 {[%emt 0:05:38]} 51. Kd3 {[%emt 0:00:09]} Bf7 {[%emt 0:01:40]} 52. Kd4 {[%emt 0:00:06]} Bg6 {[%emt 0:00:31]} 53. Kd5 {[%emt 0:00:09]} Bf7+ {[%emt 0:01:23]} 54. Kd6 {[%emt 0:00:01]} Bc4 {[%emt 0:00:46]} 55. h5 {[%emt 0:01:01]} Bb5 {[%emt 0:00:47]} 56. Bd5 {[%emt 0:01:02]} Be2 {[%emt 0:00:20]} 57. h6 {[%emt 0:00:08]} Kg6 {[%emt 0:00:13]} 58. Ke5 {[%emt 0:00:22]} Kxh6 {[%emt 0:00:59]} 59. Kf6 {[%emt 0:00:15]} Kh7 {[%emt 0:00:23]} 60. Be6 {[%emt 0:00:09]} Bb5 {[%emt 0:00:38]} 61. Bxf5+ {[%emt 0:00:33]} Kg8 {[%emt 0:00:04]} 62. Ke7 {[%emt 0:00:05]} Kg7 {[%emt 0:00:52]} 63. Be6 {[%emt 0:00:12] Weighted Error Value: White=0.11 (very precise) /Black=0.45} 1-0

[Event "31st Kavala Open-A 2022"]
[Site "Kavala"]
[Date "2022.07.27"]
[Round "2.14"]
[White "Tarhan, Adar"]
[Black "Gouloutis, Nikolaos"]
[Result "1-0"]
[ECO "B12"]
[WhiteElo "2201"]
[BlackElo "2362"]
[Annotator "TA"]
[PlyCount "101"]
[EventDate "2022.07.27"]
[EventType "swiss"]
[EventCountry "GRE"]
[SourceTitle "playchess.com"]
[Source "ChessBase"]
[SourceQuality "1"]
[TimeControl "40/5400+30:1800+30"]

{[%evp 10,101,25,25,31,-26,-22,-19,-22,-30,-25,-22,-25,-33,-15,-29,-27,-56,-16,-54,-47,-68,-30,-116,-98,-115,-105,-92,-77,-83,-95,-77,-45,-92,-84,-106,-101,-96,-93,-86,-91,-109,-107,-104,-72,-78,-10,-12,0,-44,24,7,0,-6,45,23,13,34,21,-33,31,0,0,-10,47,0,0,0,0,0,0,0,0,0,0,0,0,0,0,0,0,0,0,0,0,0,146,124,12840,402,168,0,29992,29988]} 1. e4 {[%emt 0:00:03]} c6 {[%emt 0:05:58]} 2. d4 {[%emt 0:00:05]} d5 {[%emt 0:00:22]} 3. e5 {[%emt 0:00:04]} Bf5 {[%emt 0:00:05]} 4. Nf3 {[%emt 0:00:04]} e6 {[%emt 0:00:05]} 5. Be2 {[%emt 0:00:05]} Ne7 {[%emt 0:00:36][%cal Bg8e7,Be7g6,Bg6f4,Bf4e2][%mdl 32]} 6. O-O {[%emt 0:00:30]} Ng6 {[%emt 0:00:05] 6...h6 gains popularity. B12: Caro-Kann: Advance Variation.} 7. Nbd2 {[%emt 0:02:58]} ({White should try} 7. Be3 $14) 7... Nf4 $11 {[%emt 0:00:42]} 8. Nb3 {[%emt 0:00:31]} Nxe2+ {[%emt 0:00:08] The position is equal.} 9. Qxe2 {[%emt 0:00:03]} Be7 {[%emt 0:03:00]} 10. a4 {[%emt 0:04:09]} a5 {[%emt 0:04:44]} 11. Be3 {[%emt 0:02:31] [#]} O-O $146 {[%emt 0:00:49]} ({Predecessor:} 11... Bg4 12. c3 Nd7 13. h3 Bh5 14. Nbd2 Qb6 15. b3 Qa6 16. Qxa6 Rxa6 17. Rfb1 O-O {0-1 (47) Ronneland,D (2218)-Cornette,M (2602) Fornebu 2017}) 12. Rfc1 {[%emt 0:03:32]} h6 {[%emt 0:27:32]} 13. Bd2 {[%emt 0:16:29]} Qb6 {[%emt 0:02:49][%cal Of5c2]} 14. Be1 {[%emt 0:02:31]} Nd7 {[%emt 0:04:33]} 15. Nfd2 {[%emt 0:00:41]} Bg5 {[%emt 0:17:24]} 16. Ra3 {[%emt 0:01:36]} (16. g3 $11 {remains equal.}) 16... f6 $17 {[%emt 0:10:30]} 17. h4 {[%emt 0:12:24]} Bf4 {[%emt 0:02:27][%cal Rf6e5]} 18. g3 {[%emt 0:01:46]} Bxd2 {[%emt 0:00:05]} 19. Bxd2 {[%emt 0:00:14]} fxe5 {[%emt 0:00:13]} 20. dxe5 {[%emt 0:00:37]} c5 {[%emt 0:15:58]} 21. Be3 {[%emt 0:09:26]} (21. f4 $15 {is superior.}) 21... Qc7 {[%emt 0:00:13]} 22. Bf4 {[%emt 0:00:42]} b6 {[%emt 0:00:09]} 23. Nd2 {[%emt 0:02:56]} Qd8 {[%emt 0:00:12]} 24. Nf1 {[%emt 0:09:35]} Qe8 {[%emt 0:00:42]} 25. h5 {[%emt 0:05:31]} Bh7 {[%emt 0:00:54]} 26. Ne3 {[%emt 0:01:17]} Kh8 {[%emt 0:00:17]} 27. Ng2 {[%emt 0:00:59]} Rf5 {[%emt 0:00:46]} (27... c4 $17) 28. g4 $11 {[%emt 0:00:26]} Rf7 {[%emt 0:00:58]} 29. Rg3 {[%emt 0:00:54]} Be4 {[%emt 0:01:07]} ({Black should play} 29... Qf8 $15 30. Qe3 Kg8) 30. f3 {[%emt 0:00:11]} Bh7 {[%emt 0:00:04]} 31. Bd2 {[%emt 0:02:43]} Nb8 {[%emt 0:00:39]} (31... c4 $11) 32. g5 $14 {[%emt 0:08:38]} hxg5 {[%emt 0:00:06]} (32... Qxa4 $2 33. g6 Bxg6 34. Rxg6 $18 (34. hxg6 Rf5 $16)) 33. Bxg5 {[%emt 0:00:06] Hoping for h6.} Qxa4 {[%emt 0:00:26]} 34. h6 {[%emt 0:01:49]} (34. Rg4 $11 Qe8 35. h6) 34... Nd7 {[%emt 0:00:03]} ({Better is} 34... Qd4+ $15 35. Qe3 Nd7 36. Qxd4 cxd4) 35. Rg4 {[%emt 0:00:42]} Qa2 {[%emt 0:00:52]} 36. hxg7+ $1 {[%emt 0:01:24]} Rxg7 {[%emt 0:00:39]} (36... Kg8 $11 37. c4 a4 38. cxd5 Qxd5) 37. Bf6 {[%emt 0:08:24]} (37. c4 $1 $14 {is more appropriate.}) 37... Nxf6 $11 {[%emt 0:00:05]} 38. Rxg7 {[%emt 0:00:04]} Kxg7 {[%emt 0:00:08]} 39. exf6+ {[%emt 0:00:06]} Kxf6 {[%emt 0:01:49]} (39... Kh8 40. Qe5 Bf5 41. Qc7 $18) 40. Re1 {[%emt 0:00:00]} Qxb2 {[%emt 0:00:00]} 41. Qxe6+ {[%emt 0:00:15]} Kg7 {[%emt 0:04:00] Strongly threatening ...Qd4+.} 42. Re5 {[%emt 0:03:44] Intending Qe7+ and mate.} Qd4+ {[%emt 0:15:35]} (42... Qxc2 $2 43. Qe7+ Kg8 44. Rg5+ Bg6 45. Nf4 $18) 43. Kh1 {[%emt 0:08:07] Threatening mate with Qe7+.} Rf8 {[%emt 0:00:08] Threatens to win with ...Bg6.} (43... Bxc2 $2 44. Qe7+ Kg8 45. Qf6 Qxe5 46. Qxe5 $18) 44. Qe7+ $1 {[%emt 0:05:13]} ({Don't play} 44. Rxd5 Qf6 45. Rd7+ Kh8 $17) 44... Rf7 {[%emt 0:00:08]} 45. Qg5+ {[%emt 0:00:17]} Bg6 $1 {[%emt 0:03:11]} 46. Nh4 {[%emt 0:02:02]} Rf6 {[%emt 0:06:48]} 47. Re7+ {[%emt 0:11:11]} ({Don't go for} 47. Nf5+ $2 Rxf5 $1 {[%mdl 512]} 48. Rxf5 Qd1+ 49. Kh2 Qxc2+ 50. Kg3 Qxf5 $19) 47... Kf8 {[%emt 0:00:23] [#]} (47... Kg8 $1 $11) 48. Rb7 $1 $40 {[%emt 0:05:24][%mdl 1152] White has strong compensation. White attacks with force. The board is on fire.} Qa1+ $2 {[%emt 0:03:21][%mdl 8192]} (48... Bf7 $16 49. Rb8+ Be8) 49. Kg2 {[%emt 0:01:05]} (49. Kh2 $142 Qd4 50. Nxg6+ Ke8 51. Qg3 Qd2+ 52. Kh3 Qh6+ 53. Nh4 Rd6 54. Qg8+ Qf8 55. Rb8+ Rd8 56. Rxd8+ Kxd8 57. Qxf8+ Kc7 58. Nf5) 49... Bf7 $18 {[%emt 0:00:05]} 50. Nf5 $2 {[%emt 0:00:41]} (50. Rb8+ $18 Be8 51. Qe3) 50... Ke8 $2 {[%emt 0:02:29][%mdl 8192]} (50... Re6 $11 51. Rb8+ Be8) 51. Re7+ {[%emt 0:00:25][%mdl 64] Deflection.  Weighted Error Value: White=0.37/Black=0.32} 1-0